[Event "Late-Titled-Tuesday-Blitz-April-02-2024"]
[Site "Chess.com"]
[Date "2024.04.02"]
[Round "9"]
[White "maurovargas01"]
[Black "CURRUTACO59"]
[Result "0-1"]
[WhiteElo "1885"]
[BlackElo "2253"]
[TimeControl "180+1"]
[EndTime "15:38:38 PDT"]
[Termination "CURRUTACO59 won by checkmate"]

1. e4 {[%clk 0:02:59.3]} 1... e5 {[%clk 0:02:59.2]} 2. Nf3 {[%clk 0:02:59.3]}
2... Nc6 {[%clk 0:02:59.2]} 3. Bc4 {[%clk 0:02:59.8]} 3... Bc5 {[%clk 0:02:59]}
4. O-O {[%clk 0:02:59.3]} 4... d6 {[%clk 0:02:56.7]} 5. c3 {[%clk 0:02:58.3]}
5... Nf6 {[%clk 0:02:55.6]} 6. d4 {[%clk 0:02:58]} 6... Bb6 {[%clk 0:02:55.6]}
7. d5 {[%clk 0:02:53.8]} 7... Ne7 {[%clk 0:02:53.9]} 8. Re1 {[%clk 0:02:50.8]}
8... Ng6 {[%clk 0:02:53.3]} 9. h3 {[%clk 0:02:50.2]} 9... h6 {[%clk 0:02:52.1]}
10. Nbd2 {[%clk 0:02:45.6]} 10... O-O {[%clk 0:02:40.7]} 11. a4 {[%clk
0:02:39.6]} 11... a6 {[%clk 0:02:38.1]} 12. a5 {[%clk 0:02:37.9]} 12... Ba7
{[%clk 0:02:37.9]} 13. Nf1 {[%clk 0:02:36.3]} 13... Nh5 {[%clk 0:02:32.7]} 14.
Kh2 {[%clk 0:02:31.4]} 14... Qf6 {[%clk 0:02:25.3]} 15. g3 {[%clk 0:02:23.7]}
15... Bxf2 {[%clk 0:02:20.1]} 16. Re2 {[%clk 0:02:22]} 16... Qxf3 {[%clk
0:02:14.3]} 17. g4 {[%clk 0:02:08]} 17... Nhf4 {[%clk 0:01:59.3]} 18. Bxf4
{[%clk 0:02:01.2]} 18... Nxf4 {[%clk 0:02:00.2]} 19. Rxf2 {[%clk 0:02:01.3]}
19... Qxf2+ {[%clk 0:01:57.5]} 20. Kh1 {[%clk 0:01:42.5]} 20... Qg2# {[%clk
0:01:58.4]} 0-1

[Event "Late-Titled-Tuesday-Blitz-April-02-2024"]
[Site "Chess.com"]
[Date "2024.04.02"]
[Round "9"]
[White "RealPerangel"]
[Black "Bryanl106"]
[Result "0-1"]
[WhiteElo "2563"]
[BlackElo "2688"]
[TimeControl "180+1"]
[EndTime "15:39:02 PDT"]
[Termination "Bryanl106 won by resignation"]

1. e4 {[%clk 0:02:56.6]} 1... e5 {[%clk 0:02:59]} 2. d4 {[%clk 0:02:55.9]} 2...
exd4 {[%clk 0:02:58.8]} 3. Qxd4 {[%clk 0:02:56.8]} 3... Nc6 {[%clk 0:02:59.2]}
4. Qe3 {[%clk 0:02:57.1]} 4... Nf6 {[%clk 0:03:00]} 5. Bd2 {[%clk 0:02:57.5]}
5... Bb4 {[%clk 0:03:00.4]} 6. c3 {[%clk 0:02:57.8]} 6... Ba5 {[%clk 0:02:59.1]}
7. c4 {[%clk 0:02:58.2]} 7... Bxd2+ {[%clk 0:02:55.2]} 8. Nxd2 {[%clk
0:02:59.1]} 8... O-O {[%clk 0:02:55.6]} 9. O-O-O {[%clk 0:02:57.6]} 9... d6
{[%clk 0:02:56]} 10. f3 {[%clk 0:02:57.9]} 10... a6 {[%clk 0:02:55.9]} 11. Ne2
{[%clk 0:02:57.6]} 11... b5 {[%clk 0:02:56.1]} 12. Nf4 {[%clk 0:02:57.7]} 12...
bxc4 {[%clk 0:02:55.6]} 13. Nxc4 {[%clk 0:02:52.2]} 13... Qe7 {[%clk 0:02:52.7]}
14. g4 {[%clk 0:02:50.6]} 14... Be6 {[%clk 0:02:50.1]} 15. g5 {[%clk 0:02:49.7]}
15... Nd7 {[%clk 0:02:49.7]} 16. Rg1 {[%clk 0:02:48.1]} 16... Nde5 {[%clk
0:02:46.4]} 17. Qc3 {[%clk 0:02:46.3]} 17... Bxc4 {[%clk 0:02:41.6]} 18. Bxc4
{[%clk 0:02:47.2]} 18... Nxc4 {[%clk 0:02:42.3]} 19. Qxc4 {[%clk 0:02:43.5]}
19... Ne5 {[%clk 0:02:42.4]} 20. Qc3 {[%clk 0:02:43.2]} 20... c6 {[%clk
0:02:40.6]} 21. h4 {[%clk 0:02:40.9]} 21... a5 {[%clk 0:02:38.7]} 22. h5 {[%clk
0:02:40.9]} 22... f6 {[%clk 0:02:31.8]} 23. g6 {[%clk 0:02:32.5]} 23... h6
{[%clk 0:02:30.7]} 24. Rg2 {[%clk 0:02:28.1]} 24... Rfb8 {[%clk 0:02:28.4]} 25.
Rgd2 {[%clk 0:02:26.3]} 25... Rd8 {[%clk 0:02:24.9]} 26. Qb3+ {[%clk 0:02:19.2]}
26... Kh8 {[%clk 0:02:24.8]} 27. Qe6 {[%clk 0:02:19]} 27... Qa7 {[%clk
0:02:23.1]} 28. Rxd6 {[%clk 0:02:11.3]} 28... Qe3+ {[%clk 0:02:03.8]} 29. Kb1
{[%clk 0:02:10.7]} 29... Re8 {[%clk 0:02:01.7]} 30. Qb3 {[%clk 0:02:09.9]} 30...
Qxf4 {[%clk 0:02:00.8]} 31. Qb7 {[%clk 0:01:52.4]} 31... Qxf3 {[%clk 0:01:47.7]}
0-1

[Event "Late-Titled-Tuesday-Blitz-April-02-2024"]
[Site "Chess.com"]
[Date "2024.04.02"]
[Round "9"]
[White "DinaBelenkaya"]
[Black "yobdc"]
[Result "0-1"]
[WhiteElo "2466"]
[BlackElo "2600"]
[TimeControl "180+1"]
[EndTime "15:39:26 PDT"]
[Termination "yobdc won by resignation"]

1. e4 {[%clk 0:03:00.9]} 1... d5 {[%clk 0:02:58.7]} 2. exd5 {[%clk 0:02:59]}
2... Qxd5 {[%clk 0:02:59.6]} 3. Nf3 {[%clk 0:02:58]} 3... Bg4 {[%clk 0:02:58]}
4. Be2 {[%clk 0:02:58.1]} 4... c6 {[%clk 0:02:55.9]} 5. O-O {[%clk 0:02:57.6]}
5... Nf6 {[%clk 0:02:55.8]} 6. d4 {[%clk 0:02:57.7]} 6... e6 {[%clk 0:02:55]} 7.
c4 {[%clk 0:02:57.6]} 7... Qd8 {[%clk 0:02:54.6]} 8. Nc3 {[%clk 0:02:56.5]} 8...
Be7 {[%clk 0:02:54.6]} 9. Bf4 {[%clk 0:02:54.3]} 9... O-O {[%clk 0:02:54.2]} 10.
Qd2 {[%clk 0:02:54.8]} 10... Nbd7 {[%clk 0:02:51.8]} 11. Rad1 {[%clk 0:02:53.4]}
11... Re8 {[%clk 0:02:27.1]} 12. h3 {[%clk 0:02:49.5]} 12... Bh5 {[%clk
0:02:20.2]} 13. Rfe1 {[%clk 0:02:46.5]} 13... Qa5 {[%clk 0:02:19.6]} 14. a3
{[%clk 0:02:45.2]} 14... Rac8 {[%clk 0:02:12.7]} 15. Nd5 {[%clk 0:02:38.3]}
15... Qxd2 {[%clk 0:02:10.5]} 16. Nxe7+ {[%clk 0:02:38.2]} 16... Rxe7 {[%clk
0:02:10.8]} 17. Rxd2 {[%clk 0:02:37.4]} 17... b5 {[%clk 0:01:53.2]} 18. Bd6
{[%clk 0:02:34.2]} 18... Ree8 {[%clk 0:01:53]} 19. c5 {[%clk 0:02:30.8]} 19...
Ne4 {[%clk 0:01:49.2]} 20. Rdd1 {[%clk 0:02:25.3]} 20... Nxd6 {[%clk 0:01:49.4]}
21. cxd6 {[%clk 0:02:25.9]} 21... Red8 {[%clk 0:01:46.1]} 22. Ne5 {[%clk
0:02:15.6]} 22... Bxe2 {[%clk 0:01:42.8]} 23. Rxe2 {[%clk 0:02:16.5]} 23... Nb8
{[%clk 0:01:27.1]} 24. Rc2 {[%clk 0:02:08]} 24... Rxd6 {[%clk 0:01:26.2]} 25.
Rdc1 {[%clk 0:01:50.4]} 25... f6 {[%clk 0:01:21.8]} 26. Nxc6 {[%clk 0:01:49.2]}
26... Rdxc6 {[%clk 0:01:21.2]} 0-1

[Event "Late-Titled-Tuesday-Blitz-April-02-2024"]
[Site "Chess.com"]
[Date "2024.04.02"]
[Round "9"]
[White "SultaiC"]
[Black "lcmil"]
[Result "0-1"]
[WhiteElo "2502"]
[BlackElo "2308"]
[TimeControl "180+1"]
[EndTime "15:39:38 PDT"]
[Termination "lcmil won by checkmate"]

1. e4 {[%clk 0:02:54.9]} 1... c5 {[%clk 0:02:59.7]} 2. Nf3 {[%clk 0:02:48]} 2...
d6 {[%clk 0:03:00.2]} 3. d4 {[%clk 0:02:47.2]} 3... cxd4 {[%clk 0:03:01.1]} 4.
Nxd4 {[%clk 0:02:46.8]} 4... Nf6 {[%clk 0:03:01.7]} 5. Nc3 {[%clk 0:02:41.7]}
5... g6 {[%clk 0:03:00.8]} 6. Be3 {[%clk 0:02:37.7]} 6... Bg7 {[%clk 0:02:59.7]}
7. Be2 {[%clk 0:02:34.9]} 7... O-O {[%clk 0:02:58.3]} 8. f3 {[%clk 0:02:35]}
8... Nc6 {[%clk 0:02:57.5]} 9. O-O {[%clk 0:02:35.4]} 9... Bd7 {[%clk
0:02:56.4]} 10. Qd2 {[%clk 0:02:35.1]} 10... Rc8 {[%clk 0:02:55.7]} 11. Rad1
{[%clk 0:02:35.4]} 11... Ne5 {[%clk 0:02:55.1]} 12. Bh6 {[%clk 0:02:32.2]} 12...
Nc4 {[%clk 0:02:47.4]} 13. Qc1 {[%clk 0:02:30.2]} 13... Bxh6 {[%clk 0:02:44.4]}
14. Qxh6 {[%clk 0:02:31.1]} 14... Nxb2 {[%clk 0:02:44.6]} 15. Nd5 {[%clk
0:02:29.8]} 15... Nxd1 {[%clk 0:02:35.2]} 16. Nxf6+ {[%clk 0:02:21.1]} 16...
exf6 {[%clk 0:02:33.4]} 17. Rxd1 {[%clk 0:02:22]} 17... Qb6 {[%clk 0:02:20.4]}
18. Kh1 {[%clk 0:02:20]} 18... Ba4 {[%clk 0:02:18]} 19. f4 {[%clk 0:02:04.8]}
19... Bxc2 {[%clk 0:02:14.1]} 20. Rd2 {[%clk 0:01:54.2]} 20... Qb1+ {[%clk
0:02:09.1]} 21. Bd1 {[%clk 0:01:53.8]} 21... Bxd1 {[%clk 0:02:09.1]} 22. h4
{[%clk 0:01:52]} 22... Bh5+ {[%clk 0:01:57.5]} 23. Kh2 {[%clk 0:01:50.3]} 23...
Qxe4 {[%clk 0:01:52.9]} 24. Ne2 {[%clk 0:01:37.2]} 24... Bxe2 {[%clk 0:01:49.2]}
25. a4 {[%clk 0:01:35.6]} 25... Rc2 {[%clk 0:01:46.1]} 26. Rxc2 {[%clk
0:01:32.3]} 26... Qxc2 {[%clk 0:01:44.9]} 27. Qxf8+ {[%clk 0:01:24.5]} 27...
Kxf8 {[%clk 0:01:43.9]} 28. f5 {[%clk 0:01:25.4]} 28... Bf3 {[%clk 0:01:42.1]}
29. Kg3 {[%clk 0:01:26.3]} 29... Qxg2+ {[%clk 0:01:41.4]} 30. Kf4 {[%clk
0:01:27.2]} 30... Qg4+ {[%clk 0:01:41.5]} 31. Ke3 {[%clk 0:01:27.7]} 31... Qe4+
{[%clk 0:01:41.9]} 32. Kf2 {[%clk 0:01:28.6]} 32... Qe2+ {[%clk 0:01:41.8]} 33.
Kg3 {[%clk 0:01:29.5]} 33... g5 {[%clk 0:01:40.7]} 34. hxg5 {[%clk 0:01:29.1]}
34... fxg5 {[%clk 0:01:40.8]} 35. Kh3 {[%clk 0:01:29]} 35... Qg2# {[%clk
0:01:40.8]} 0-1

[Event "Late-Titled-Tuesday-Blitz-April-02-2024"]
[Site "Chess.com"]
[Date "2024.04.02"]
[Round "9"]
[White "Laico"]
[Black "PawnEatingZombie"]
[Result "1-0"]
[WhiteElo "2399"]
[BlackElo "2187"]
[TimeControl "180+1"]
[EndTime "15:39:52 PDT"]
[Termination "Laico won by resignation"]

1. e4 {[%clk 0:02:57.9]} 1... c5 {[%clk 0:03:00.2]} 2. Nc3 {[%clk 0:02:56.3]}
2... Nc6 {[%clk 0:03:00.5]} 3. f4 {[%clk 0:02:56.4]} 3... g6 {[%clk 0:02:59.5]}
4. Nf3 {[%clk 0:02:57.3]} 4... Bg7 {[%clk 0:02:59.8]} 5. Bb5 {[%clk 0:02:58]}
5... Nd4 {[%clk 0:02:56.6]} 6. O-O {[%clk 0:02:58.6]} 6... a6 {[%clk 0:02:54.1]}
7. Bc4 {[%clk 0:02:58.5]} 7... e6 {[%clk 0:02:53.6]} 8. d3 {[%clk 0:02:58.1]}
8... Ne7 {[%clk 0:02:52.8]} 9. Nxd4 {[%clk 0:02:57.7]} 9... cxd4 {[%clk
0:02:52.4]} 10. Ne2 {[%clk 0:02:58.6]} 10... O-O {[%clk 0:02:47]} 11. Ng3 {[%clk
0:02:58.7]} 11... d5 {[%clk 0:02:44]} 12. Bb3 {[%clk 0:02:58.4]} 12... dxe4
{[%clk 0:02:37.6]} 13. dxe4 {[%clk 0:02:59.3]} 13... b5 {[%clk 0:02:31.1]} 14.
a4 {[%clk 0:02:59.4]} 14... Bb7 {[%clk 0:02:30.5]} 15. Bd2 {[%clk 0:02:57.6]}
15... Qd7 {[%clk 0:02:17.5]} 16. f5 {[%clk 0:02:53.7]} 16... exf5 {[%clk
0:02:16.9]} 17. exf5 {[%clk 0:02:54.2]} 17... Nd5 {[%clk 0:02:04.8]} 18. Ne4
{[%clk 0:02:37.8]} 18... Rfc8 {[%clk 0:01:49.8]} 19. Qf3 {[%clk 0:02:05.4]}
19... Nf6 {[%clk 0:01:32.3]} 20. Nxf6+ {[%clk 0:01:49.5]} 20... Bxf6 {[%clk
0:01:33.2]} 21. Qg3 {[%clk 0:01:49.6]} 21... Rc6 {[%clk 0:00:53.1]} 22. fxg6
{[%clk 0:01:46]} 1-0

[Event "Late-Titled-Tuesday-Blitz-April-02-2024"]
[Site "Chess.com"]
[Date "2024.04.02"]
[Round "9"]
[White "Romkachess"]
[Black "MikaelyanArman"]
[Result "0-1"]
[WhiteElo "2679"]
[BlackElo "2822"]
[TimeControl "180+1"]
[EndTime "15:40:35 PDT"]
[Termination "MikaelyanArman won by resignation"]

1. e4 {[%clk 0:03:00.9]} 1... c5 {[%clk 0:02:59.9]} 2. Nf3 {[%clk 0:02:57.4]}
2... b6 {[%clk 0:03:00.4]} 3. d4 {[%clk 0:02:55.7]} 3... cxd4 {[%clk 0:03:01.3]}
4. Nxd4 {[%clk 0:02:55.7]} 4... Bb7 {[%clk 0:03:01.8]} 5. Nc3 {[%clk 0:02:52.9]}
5... Nc6 {[%clk 0:03:02.3]} 6. Nxc6 {[%clk 0:02:53.1]} 6... Bxc6 {[%clk
0:03:03.2]} 7. Bd3 {[%clk 0:02:53]} 7... e6 {[%clk 0:03:03.7]} 8. Bf4 {[%clk
0:02:52]} 8... Nf6 {[%clk 0:03:01.7]} 9. O-O {[%clk 0:02:50.2]} 9... Bc5 {[%clk
0:03:00.9]} 10. Kh1 {[%clk 0:02:33.2]} 10... O-O {[%clk 0:02:59.6]} 11. Qe2
{[%clk 0:02:32.9]} 11... d6 {[%clk 0:02:53.4]} 12. Rad1 {[%clk 0:02:31.1]} 12...
Nd7 {[%clk 0:02:46.1]} 13. Bb5 {[%clk 0:02:27.8]} 13... Bxb5 {[%clk 0:02:41.4]}
14. Nxb5 {[%clk 0:02:27.3]} 14... e5 {[%clk 0:02:42]} 15. Be3 {[%clk 0:02:23.5]}
15... Qe7 {[%clk 0:02:37.3]} 16. Nc7 {[%clk 0:02:17.8]} 16... Rac8 {[%clk
0:02:34.8]} 17. Nd5 {[%clk 0:02:18]} 17... Qe6 {[%clk 0:02:35.4]} 18. c3 {[%clk
0:02:11.8]} 18... f5 {[%clk 0:02:34]} 19. exf5 {[%clk 0:02:09.2]} 19... Rxf5
{[%clk 0:02:34.4]} 20. Qg4 {[%clk 0:01:57.1]} 20... Rcf8 {[%clk 0:02:30.6]} 21.
Bxc5 {[%clk 0:00:54.8]} 21... Nxc5 {[%clk 0:02:31.5]} 22. Ne3 {[%clk 0:00:54.2]}
22... Rxf2 {[%clk 0:02:11.1]} 23. Rxf2 {[%clk 0:00:48.5]} 23... Rxf2 {[%clk
0:02:09.9]} 24. b4 {[%clk 0:00:40]} 24... Qxg4 {[%clk 0:01:56.9]} 25. Nxg4
{[%clk 0:00:38.1]} 25... Ne4 {[%clk 0:01:57.5]} 26. Re1 {[%clk 0:00:36.9]} 26...
Rxa2 {[%clk 0:01:53.5]} 27. h4 {[%clk 0:00:34.7]} 27... Nxc3 {[%clk 0:01:46.9]}
28. Rc1 {[%clk 0:00:33.9]} 28... Ra3 {[%clk 0:01:40.3]} 29. h5 {[%clk
0:00:32.2]} 29... Rb3 {[%clk 0:01:38.7]} 30. h6 {[%clk 0:00:29.8]} 30... Rb1
{[%clk 0:01:38.1]} 31. Rxb1 {[%clk 0:00:27]} 31... Nxb1 {[%clk 0:01:39]} 32.
hxg7 {[%clk 0:00:27.5]} 32... Kxg7 {[%clk 0:01:39.9]} 0-1

[Event "Late-Titled-Tuesday-Blitz-April-02-2024"]
[Site "Chess.com"]
[Date "2024.04.02"]
[Round "9"]
[White "Hamisandwich"]
[Black "VD_coach"]
[Result "1-0"]
[WhiteElo "2719"]
[BlackElo "2586"]
[TimeControl "180+1"]
[EndTime "15:40:39 PDT"]
[Termination "Hamisandwich won by resignation"]

1. Nf3 {[%clk 0:02:57.6]} 1... Nf6 {[%clk 0:02:59.4]} 2. g3 {[%clk 0:02:57.3]}
2... g6 {[%clk 0:02:59.7]} 3. Bg2 {[%clk 0:02:57]} 3... Bg7 {[%clk 0:02:59.9]}
4. b3 {[%clk 0:02:57.9]} 4... O-O {[%clk 0:02:59.4]} 5. Bb2 {[%clk 0:02:57.9]}
5... d6 {[%clk 0:02:59.8]} 6. d4 {[%clk 0:02:57.4]} 6... e5 {[%clk 0:02:58.6]}
7. dxe5 {[%clk 0:02:58.3]} 7... Ng4 {[%clk 0:02:58.4]} 8. c4 {[%clk 0:02:58]}
8... Nxe5 {[%clk 0:02:57.4]} 9. Nxe5 {[%clk 0:02:55.7]} 9... dxe5 {[%clk
0:02:44.5]} 10. Qxd8 {[%clk 0:02:56.6]} 10... Rxd8 {[%clk 0:02:44.1]} 11. Nc3
{[%clk 0:02:57.5]} 11... c6 {[%clk 0:02:39.9]} 12. Rd1 {[%clk 0:02:45.6]} 12...
Rxd1+ {[%clk 0:02:39]} 13. Kxd1 {[%clk 0:02:46.5]} 13... Bf5 {[%clk 0:02:32.8]}
14. Be4 {[%clk 0:02:43.2]} 14... Bxe4 {[%clk 0:02:28.5]} 15. Nxe4 {[%clk
0:02:44.1]} 15... Na6 {[%clk 0:02:15.7]} 16. Kc1 {[%clk 0:02:37.8]} 16... f5
{[%clk 0:02:03.5]} 17. Nd6 {[%clk 0:02:36.6]} 17... b6 {[%clk 0:01:59.7]} 18.
Rd1 {[%clk 0:02:31.7]} 18... Rd8 {[%clk 0:01:56.9]} 19. Nb7 {[%clk 0:02:07]}
19... Rxd1+ {[%clk 0:01:55.7]} 20. Kxd1 {[%clk 0:02:07.9]} 20... c5 {[%clk
0:01:07.5]} 21. Nd8 {[%clk 0:02:03.3]} 21... Nb4 {[%clk 0:00:51.2]} 22. a3
{[%clk 0:01:56.8]} 22... Bf6 {[%clk 0:00:45.1]} 23. axb4 {[%clk 0:01:56.2]}
23... Bxd8 {[%clk 0:00:45]} 24. bxc5 {[%clk 0:01:57.1]} 24... e4 {[%clk
0:00:44.6]} 25. c6 {[%clk 0:01:49.4]} 25... Bc7 {[%clk 0:00:44.8]} 26. b4 {[%clk
0:01:47.2]} 26... a5 {[%clk 0:00:41.1]} 27. b5 {[%clk 0:01:44.3]} 27... Kf7
{[%clk 0:00:41.3]} 28. Bd4 {[%clk 0:01:35.6]} 28... Ke8 {[%clk 0:00:35.7]} 29.
c5 {[%clk 0:01:34.2]} 29... bxc5 {[%clk 0:00:34.3]} 30. Bxc5 {[%clk 0:01:35.1]}
1-0

[Event "Late-Titled-Tuesday-Blitz-April-02-2024"]
[Site "Chess.com"]
[Date "2024.04.02"]
[Round "9"]
[White "FairChess_on_YouTube"]
[Black "GMKrikor"]
[Result "1-0"]
[WhiteElo "3048"]
[BlackElo "2872"]
[TimeControl "180+1"]
[EndTime "15:40:52 PDT"]
[Termination "FairChess_on_YouTube won on time"]

1. d4 {[%clk 0:03:00.9]} 1... Nf6 {[%clk 0:02:59.9]} 2. c4 {[%clk 0:03:01.4]}
2... g6 {[%clk 0:03:00.3]} 3. Nc3 {[%clk 0:03:01.3]} 3... d5 {[%clk 0:03:00.6]}
4. cxd5 {[%clk 0:03:01.7]} 4... Nxd5 {[%clk 0:03:01.5]} 5. e4 {[%clk 0:03:02.2]}
5... Nxc3 {[%clk 0:03:02]} 6. bxc3 {[%clk 0:03:03.1]} 6... Bg7 {[%clk
0:03:02.1]} 7. Be3 {[%clk 0:03:03.7]} 7... c5 {[%clk 0:03:02.1]} 8. Qd2 {[%clk
0:03:03.6]} 8... Qa5 {[%clk 0:03:01.7]} 9. Nf3 {[%clk 0:03:01.1]} 9... O-O
{[%clk 0:03:01.1]} 10. Rb1 {[%clk 0:02:59.7]} 10... b6 {[%clk 0:02:56.8]} 11. h4
{[%clk 0:02:57.7]} 11... Bb7 {[%clk 0:02:29]} 12. Bd3 {[%clk 0:02:49.4]} 12...
Nc6 {[%clk 0:02:12.4]} 13. h5 {[%clk 0:02:34.9]} 13... cxd4 {[%clk 0:01:41.6]}
14. cxd4 {[%clk 0:02:35.8]} 14... Qxd2+ {[%clk 0:01:41.8]} 15. Kxd2 {[%clk
0:02:36.2]} 15... Rfd8 {[%clk 0:01:24.9]} 16. d5 {[%clk 0:02:29.3]} 16... Ne5
{[%clk 0:00:54.4]} 17. Nxe5 {[%clk 0:02:28.8]} 17... Bxe5 {[%clk 0:00:55.3]} 18.
f4 {[%clk 0:02:16.7]} 18... Bg7 {[%clk 0:00:40.6]} 19. h6 {[%clk 0:02:10.1]}
19... Bh8 {[%clk 0:00:40.7]} 20. Rhc1 {[%clk 0:01:54.9]} 20... Rac8 {[%clk
0:00:37.8]} 21. g4 {[%clk 0:01:54.7]} 21... e6 {[%clk 0:00:33.6]} 22. g5 {[%clk
0:01:50.3]} 22... f6 {[%clk 0:00:15.8]} 23. Rxc8 {[%clk 0:01:45.7]} 23... Rxc8
{[%clk 0:00:10]} 24. dxe6 {[%clk 0:01:36.4]} 24... fxg5 {[%clk 0:00:10.1]} 25.
f5 {[%clk 0:01:36.5]} 1-0

[Event "Late-Titled-Tuesday-Blitz-April-02-2024"]
[Site "Chess.com"]
[Date "2024.04.02"]
[Round "9"]
[White "KnightDuta"]
[Black "AlexandreHouhou"]
[Result "1-0"]
[WhiteElo "2723"]
[BlackElo "2363"]
[TimeControl "180+1"]
[EndTime "15:41:10 PDT"]
[Termination "KnightDuta won by checkmate"]

1. e4 {[%clk 0:02:55.4]} 1... e6 {[%clk 0:03:00.2]} 2. d4 {[%clk 0:02:55.3]}
2... d5 {[%clk 0:03:00.6]} 3. Nc3 {[%clk 0:02:55.6]} 3... Nf6 {[%clk 0:03:00.4]}
4. e5 {[%clk 0:02:56]} 4... Nfd7 {[%clk 0:03:00.7]} 5. f4 {[%clk 0:02:56.9]}
5... c5 {[%clk 0:03:01]} 6. Nf3 {[%clk 0:02:57.7]} 6... Nc6 {[%clk 0:03:01.4]}
7. Be3 {[%clk 0:02:58.4]} 7... cxd4 {[%clk 0:03:02]} 8. Nxd4 {[%clk 0:02:59.3]}
8... Bc5 {[%clk 0:03:02.3]} 9. Qd2 {[%clk 0:02:56.8]} 9... O-O {[%clk 0:03:03]}
10. O-O-O {[%clk 0:02:54.9]} 10... a6 {[%clk 0:03:03.5]} 11. Kb1 {[%clk
0:02:48.8]} 11... Bxd4 {[%clk 0:03:02.7]} 12. Bxd4 {[%clk 0:02:49.7]} 12... b5
{[%clk 0:03:02.8]} 13. h4 {[%clk 0:02:36.9]} 13... b4 {[%clk 0:03:01]} 14. Ne2
{[%clk 0:02:35.1]} 14... a5 {[%clk 0:03:01.1]} 15. h5 {[%clk 0:02:29.8]} 15...
Ba6 {[%clk 0:03:01.2]} 16. h6 {[%clk 0:02:26.5]} 16... g6 {[%clk 0:03:01.1]} 17.
g4 {[%clk 0:02:25.9]} 17... Qc7 {[%clk 0:03:01.2]} 18. Be3 {[%clk 0:02:19.6]}
18... Rfc8 {[%clk 0:03:00.6]} 19. Nd4 {[%clk 0:02:19.1]} 19... a4 {[%clk
0:02:52.7]} 20. Bxa6 {[%clk 0:02:09.1]} 20... Rxa6 {[%clk 0:02:53.6]} 21. Nb5
{[%clk 0:02:09.6]} 21... Qa5 {[%clk 0:02:46.6]} 22. Nd6 {[%clk 0:02:08.8]} 22...
Rb8 {[%clk 0:02:47.1]} 23. Rhf1 {[%clk 0:01:36.6]} 23... b3 {[%clk 0:02:47.1]}
24. cxb3 {[%clk 0:01:37.2]} 24... axb3 {[%clk 0:02:46.1]} 25. a3 {[%clk
0:01:36.7]} 25... Qa4 {[%clk 0:02:41.9]} 26. Rc1 {[%clk 0:01:29.2]} 26... Nb4
{[%clk 0:02:38.8]} 27. f5 {[%clk 0:00:45.5]} 27... Nxe5 {[%clk 0:02:33.6]} 28.
fxe6 {[%clk 0:00:26.9]} 28... Rxd6 {[%clk 0:02:30.4]} 29. exf7+ {[%clk
0:00:27.1]} 29... Nxf7 {[%clk 0:02:30.6]} 30. Qd4 {[%clk 0:00:27.5]} 30... Nxh6
{[%clk 0:02:07.7]} 31. Bxh6 {[%clk 0:00:28.4]} 31... Rd7 {[%clk 0:02:05.3]} 32.
Qf6 {[%clk 0:00:24.8]} 32... Qa8 {[%clk 0:01:26.8]} 33. Qe6+ {[%clk 0:00:24.2]}
33... Kh8 {[%clk 0:01:25.9]} 34. Qxd7 {[%clk 0:00:24.3]} 34... Qb7 {[%clk
0:01:22]} 35. Qxb7 {[%clk 0:00:22.6]} 35... Rxb7 {[%clk 0:01:22.9]} 36. Rf8#
{[%clk 0:00:22.7]} 1-0

[Event "Late-Titled-Tuesday-Blitz-April-02-2024"]
[Site "Chess.com"]
[Date "2024.04.02"]
[Round "9"]
[White "kikoveiga"]
[Black "katharinareinecke"]
[Result "1-0"]
[WhiteElo "2458"]
[BlackElo "2019"]
[TimeControl "180+1"]
[EndTime "15:41:22 PDT"]
[Termination "kikoveiga won by checkmate"]

1. e4 {[%clk 0:03:00.9]} 1... c6 {[%clk 0:02:57.6]} 2. d4 {[%clk 0:03:00.6]}
2... d5 {[%clk 0:02:57.3]} 3. Nc3 {[%clk 0:03:01.2]} 3... b5 {[%clk 0:02:55.8]}
4. a3 {[%clk 0:02:27.5]} 4... dxe4 {[%clk 0:02:55.3]} 5. Nxe4 {[%clk 0:02:27.7]}
5... Bf5 {[%clk 0:02:55.4]} 6. Ng3 {[%clk 0:02:27.7]} 6... Bg6 {[%clk
0:02:55.5]} 7. Nf3 {[%clk 0:02:27.3]} 7... Nd7 {[%clk 0:02:52.8]} 8. h4 {[%clk
0:02:27.7]} 8... h6 {[%clk 0:02:52.3]} 9. h5 {[%clk 0:02:28.1]} 9... Bh7 {[%clk
0:02:52.5]} 10. Bd3 {[%clk 0:02:28.8]} 10... Bxd3 {[%clk 0:02:52.5]} 11. Qxd3
{[%clk 0:02:29.7]} 11... e6 {[%clk 0:02:52.9]} 12. Bd2 {[%clk 0:02:28.4]} 12...
Ngf6 {[%clk 0:02:52.5]} 13. O-O-O {[%clk 0:02:21.4]} 13... Be7 {[%clk
0:02:47.7]} 14. Ne4 {[%clk 0:02:20.5]} 14... Nxe4 {[%clk 0:02:46.1]} 15. Qxe4
{[%clk 0:02:21.4]} 15... Rc8 {[%clk 0:02:39.5]} 16. Kb1 {[%clk 0:02:10.9]} 16...
Nf6 {[%clk 0:02:38.1]} 17. Qe2 {[%clk 0:02:10.3]} 17... O-O {[%clk 0:02:29]} 18.
g4 {[%clk 0:02:00]} 18... Nd5 {[%clk 0:02:18.8]} 19. Rdg1 {[%clk 0:01:49.1]}
19... Bg5 {[%clk 0:02:14.2]} 20. Nxg5 {[%clk 0:01:48.2]} 20... hxg5 {[%clk
0:02:14.4]} 21. Qe5 {[%clk 0:01:40.2]} 21... Nf4 {[%clk 0:01:47.6]} 22. Bxf4
{[%clk 0:01:34.7]} 22... gxf4 {[%clk 0:01:47.7]} 23. Qxf4 {[%clk 0:01:32.5]}
23... c5 {[%clk 0:01:45.8]} 24. g5 {[%clk 0:01:12.5]} 24... Qxd4 {[%clk
0:01:41.9]} 25. Qg3 {[%clk 0:00:51.6]} 25... b4 {[%clk 0:01:39.4]} 26. g6 {[%clk
0:00:44.3]} 26... f6 {[%clk 0:01:32.5]} 27. h6 {[%clk 0:00:44.3]} 27... f5
{[%clk 0:01:22.1]} 28. hxg7 {[%clk 0:00:43.2]} 28... Qxg7 {[%clk 0:01:20]} 29.
Rh7 {[%clk 0:00:42.4]} 29... Qf6 {[%clk 0:01:00.4]} 30. Rgh1 {[%clk 0:00:26.8]}
30... bxa3 {[%clk 0:00:54]} 31. Rh8+ {[%clk 0:00:26.7]} 31... Kg7 {[%clk
0:00:53.5]} 32. R1h7# {[%clk 0:00:26.3]} 1-0